Cogmind - Beta 16 @@@ ROGUE MODE // 2025.11.28 @ 15:51:42 Player: BlobtheGreat Result: Destroyed by J2-MG5(R) with Subdweller Shrapnel Launcher Performance ------------- Evolutions (0) 0 Regions Visited (2) 400 Robots Destroyed (34) 170 Value Destroyed (887) 887 Prototype IDs (2) 40 Alien Tech Used (0) 0 Bonus (0) 0 TOTAL SCORE: 1497 Bonus ------- None Cogmind --------- Core Integrity 0/250 Matter 272/300 Energy 108/200 System Corruption 2% Temperature Cool (0) Movement Rolling (120) Ox1 Location -10/Subcaves Parts ------- > --- POWER (1) -------- Subdweller Power Source > --- PROPULSION (2) --- Subdweller Monowheel > --- UTILITY (2) ------ Large Storage Unit Seismic Detector > --- WEAPON (2) ------- Subdweller Beam Cannon Battle Cannon > --- INVENTORY (15) --- Subdweller Power Source Subdweller Monowheel Subdweller Optics Scrap Shield Heavy Riot Gun Subdweller Laser Subdweller Beam Cannon Subdweller Beam Cannon Subdweller Machine Gun Barrage Gun Multitool Piercing Trap Scrap Shield Fragment (47) Peak State ------------ > --- POWER ------------ Subdweller Power Source > --- PROPULSION ------- Aluminum Leg Subdweller Monowheel > --- UTILITY ---------- Large Storage Unit Seismic Detector > --- WEAPON ----------- Barrage Gun Battle Cannon > --- INVENTORY -------- Subdweller Power Source Subdweller Monowheel Subdweller Optics Small Laser Small Laser Subdweller Laser Subdweller Laser Subdweller Beam Cannon Subdweller Beam Cannon Subdweller Beam Cannon Light Assault Rifle Piercing Trap Scrap Shield Fragment [Rating: 14] Favorites ----------- Power Light Ion Engine Engine Light Ion Engine Propulsion Aluminum Leg Leg Aluminum Leg Wheel Subdweller Monowheel Utility Seismic Detector Device Seismic Detector Storage Large Storage Unit Weapon Small Laser Energy Gun Small Laser Energy Cannon Subdweller Beam Cannon Ballistic Gun Battle Rifle Ballistic Cannon Battle Cannon Special Weapon Mining Laser Build | -11 -10 -10 ------- Run | Yrd Mat Sub Slots Evolved . | . . . Power . | . . . Propulsion . | . . . Utility . | . . . Weapon . | . . . Parts Attached 29 | 7 3 19 Power 4 | 1 . 3 Engine 4 | 1 . 3 Core . | . . . Reactor . | . . . Propulsion 6 | 2 1 3 Treads . | . . . Leg 5 | 2 1 2 Wheel 1 | . . 1 Hover . | . . . Flight . | . . . Utility 4 | 2 1 1 Device 2 | 1 . 1 Storage 2 | 1 1 . Processor . | . . . Hackware . | . . . Protection . | . . . Artifact . | . . . Weapon 15 | 2 1 12 Energy Gun 4 | 2 . 2 Energy Cannon 3 | . . 3 Ballistic Gun 4 | . . 4 Ballistic Cannon 3 | . . 3 Launcher . | . . . Special Weapon 1 | . 1 . Impact Weapon . | . . . Slashing Weapon . | . . . Piercing Weapon . | . . . Special Melee Weapon . | . . . Unidentified Prototypes . | . . . Parts Lost 12 | . . 12 Power 2 | . . 2 Propulsion 4 | . . 4 Utility 1 | . . 1 Weapon 5 | . . 5 Highest Loss Streak 6 | . . 6 To Critical Strikes . | . . . Average Backups 9 | 3 7 10 Power 1 | . 1 1 Propulsion 1 | 2 2 1 Utility 1 | . 1 1 Weapon 5 | . 3 6 Tool/Special . | . . . Unused Backups 15 | . 4 11 Power 1 | . . 1 Propulsion 6 | . 4 2 Utility 2 | . . 2 Weapon 5 | . . 5 Tool/Special 1 | . . 1 Average Slot Usage (%) 95 | . 100 94 Engine 13 | . 14 12 Leg 22 | . 28 20 Wheel 3 | . . 4 Device 13 | . 14 13 Storage 14 | . 14 14 Energy Gun 9 | . 27 2 Energy Cannon 7 | . . 10 Ballistic Gun 2 | . . 4 Ballistic Cannon 5 | . . 7 Special Weapon 2 | . . 3 Peak Build Rating 14 | 7 7 14 Average Rating 9 | 5 7 10 On Entrance 4 | . 7 7 Avg Prop Armor Cover (%) 8 | . . 8 Naked Turns . | . . . Heaviest Build 37 | 11 26 37 Greatest Support 20 | 20 20 20 Greatest Overweight (x) 1 | . 1 1 Average Overweight (x) . | . . 1 Largest Inventory Capacity 15 | 8 15 15 Average Capacity 13 | 7 8 15 Most Carried 15 | 7 8 15 Average Carried 11 | 4 7 12 Final Capacity 15 | 8 15 15 Final Carried 14 | 7 8 14 Class Distribution -------------------- 90% | Mutant 9% | Scavenger-Mutant Dominant Class ---------------- Mutant | -10/Materials Mutant | -10/Subcaves Resources | -11 -10 -10 ----------- Run | Yrd Mat Sub Matter Collected 711 | 270 34 407 Remotely . | . . . Salvage Created 1199 | 143 235 821 Parts 95 | 11 24 60 Haulers Intercepted . | . . . Recyclers Shooed . | . . . Parts Field Recycled . | . . . Retrieved Matter . | . . . Parts Self-Destructed 27 | . . 27 Prevented . | . . . Parts Restored . | . . . Kills | -11 -10 -10 ------- Run | Yrd Mat Sub Combat Hostiles Destroyed 28 | . 10 18 Guns 18 | . 10 8 Cannons 9 | . . 9 Classes Destroyed 9 | 2 3 4 Tunneler 3 | 3 . . Recycler 1 | 1 . . Operator 1 | . . 1 Watcher 1 | . 1 . Swarmer 11 | . 8 3 Grunt 2 | . 2 . Hunter 2 | . . 2 Programmer 1 | . . 1 Subdweller 12 | . . 12 Best Kill Streak 4 | 4 3 3 Combat Bots Only 3 | . 3 3 Max Kills in Single Turn 1 | 1 1 1 Gunslinging . | . . . Exploded . | . . . Melee . | . . . Uniques/NPCs Destroyed . | . . . Combat | -11 -10 -10 -------- Run | Yrd Mat Sub Hostile Shots Fired 149 | . 30 119 Missed 44 | . 12 32 Hits 105 | . 18 87 Projectile 105 | . 18 87 AOE 2 | . . 2 Critical Strikes 6 | . 1 5 Damage Taken 1627 | . 148 1479 Core 254 | . 44 210 Absorbed by Shields . | . . . Core Remaining (%) 100 | 100 . . Volleys Fired 130 | 4 27 99 Largest 2 | 2 2 2 Hottest 100 | 80 100 100 Shots Fired 182 | 8 53 121 Gun 100 | 8 52 40 Cannon 78 | . . 78 Launcher . | . . . Special 4 | . 1 3 Kinetic 52 | . . 52 Thermal 127 | 8 53 66 Explosive . | . . . Electromagnetic 3 | . . 3 Robot Hit Streak 15 | 6 11 15 Robot Miss Streak 3 | . 2 3 Penetration Max . | . . . Secondary Targets 1 | . . 1 Max Gunslinging Chain 1 | . . 1 Shots Hit Robots 108 | 6 33 69 Core Hits 47 | 5 14 28 Critical Kills 1 | . . 1 Critical Parts Destroyed . | . . . Critical Strikes 1 | . . 1 Meltdown 1 | . . 1 Melee Attacks . | . . . Impact . | . . . Slashing . | . . . Piercing . | . . . Sneak Attacks . | . . . Combat Hostiles . | . . . Follow-up Attacks . | . . . Damage Inflicted 1908 | 76 384 1448 Guns 856 | 76 376 404 Cannons 1044 | . . 1044 Explosions . | . . . Melee . | . . . Ramming 8 | . 8 . Kinetic 344 | . . 344 Thermal 1526 | 76 376 1074 Explosive . | . . . Electromagnetic 30 | . . 30 Impact . | . . . Slashing . | . . . Piercing . | . . . Highest Corruption 2 | . 2 2 Average Corruption 2 | . 2 2 Corruption Purged . | . . . Corruption Blocked . | . . . Effects 27 | . 5 22 Message Errors 3 | . . 3 Matter Fused 6 | . 2 4 Heat Flow Errors 3 | . . 3 Energy Discharges 6 | . . 6 Data Loss (minor) 7 | . 2 5 Data Loss (major) 1 | . 1 . Weapon Failures 1 | . . 1 Overload Shots . | . . . Overflow Damage . | . . . Projectiles . | . . . Explosions . | . . . Melee . | . . . Knockbacks 2 | . 1 1 Impact 1 | . 1 . Kinetic 1 | . . 1 Secondary . | . . . Self-Inflicted Damage . | . . . Shots . | . . . Rammed . | . . . Targets Rammed 3 | 1 2 . Kicked 3 | 1 2 . Crushed . | . . . Highest Temperature 254 | 54 108 254 Average Temperature 35 | 25 33 41 Received Heat Transfer 99 | . 18 81 Siege Activations . | . . . Martial Activations . | . . . Shielding Activations . | . . . Robots Disrupted . | . . . Combat Hostiles . | . . . Robots Corrupted . | . . . Combat Hostiles . | . . . Parts Fried . | . . . Impact Corruptions . | . . . Robots Melted 1 | . . 1 Combat Hostiles 1 | . . 1 Parts Melted 4 | . 1 3 Heat Transferred 2483 | 175 825 1483 Parts Sabotaged . | . . . Parts Stolen . | . . . Parts Stripped . | . . . Power Chain Reactions . | . . . Alert | -11 -10 -10 ------- Run | Yrd Mat Sub Maximum Alert Level . | . . . Low Security (%) 100 | 100 100 . Level 1 . | . . . Level 2 . | . . . Level 3 . | . . . Level 4 . | . . . Level 5 . | . . . High Security . | . . . Max Security . | . . . Peak Influence 78 | 15 78 . Initial . | . . . Average 19 | 3 21 . Influence Increases 485 | 20 295 170 Destroy 0b10 Robot/C 320 | . 200 120 Destroy 0b10 Robot/NC 30 | 20 5 5 Destroy Leader 32 | . 32 . Successful Hack 42 | . 42 . Destroy Structure 1 | . 1 . Lose Combat Pursuer 60 | . 15 45 Influence Decreases 485 | 20 270 195 Entered New Map 13 | . . 13 Time Decay 422 | 20 270 132 Lost Part 50 | . . 50 Squads Dispatched 1 | . 1 . Investigation . | . . . Extermination . | . . . Reinforcement 1 | . 1 . Assault . | . . . Garrison . | . . . Intercept . | . . . Searches Triggered . | . . . Construction Impeded . | . . . Haulers Reinforced . | . . . Active Scanning Responses . | . . . Cargo Convoy Interrupts . | . . . Stealth | -11 -10 -10 --------- Run | Yrd Mat Sub Distress Signals 1 | . 1 . Communications Jammed . | . . . Distress Signals . | . . . Times Spotted 42 | . 19 23 Peak Tracking Total 4 | . 4 3 Tactical Retreats 2 | . 1 1 Traps | -11 -10 -10 ------- Run | Yrd Mat Sub Traps Triggered 1 | . 1 . Indirectly . | . . . Trap Hack Attempts . | . . . Triggered . | . . . Disarmed . | . . . Reprogrammed . | . . . Reused . | . . . Traps Extracted . | . . . Installed . | . . . Triggered . | . . . Most Traps Carried 1 | . . 1 Machines | -11 -10 -10 ---------- Run | Yrd Mat Sub Machines Disabled . | . . . Max in Single Turn . | . . . Machines Repaired . | . . . Machines Dismantled . | . . . Machines Sabotaged . | . . . Overloaded Fab Kills . | . . . Hacking | -11 -10 -10 --------- Run | Yrd Mat Sub Machines Accessed 9 | . 8 1 Terminals 8 | . 8 . Fabricators . | . . . Repair Stations . | . . . Recycling Units . | . . . Scanalyzers . | . . . Garrison Access . | . . . Total Hacks 28 | . 23 5 Successful 19 | . 14 5 Failed 9 | . 9 . Catastrophic . | . . . Database Lockouts . | . . . Manual 20 | . 20 . Terminals 23 | . 23 . Fabricators . | . . . Repair Stations . | . . . Recycling Units . | . . . Scanalyzers . | . . . Garrison Access . | . . . Terminal Hacks 9 | . 4 5 Record 5 | . . 5 Robot Analysis 3 | . 3 . Prototype ID Bank 1 | . 1 . Fabricator Hacks . | . . . Repair Station Hacks . | . . . Recycling Unit Hacks . | . . . Scanalyzer . | . . . Garrison Access Hacks . | . . . Unauthorized Hacks 10 | . 10 . Terminals 10 | . 10 . Assimilate 1 | . 1 . Botnet 3 | . 3 . Skim 6 | . 6 . Fabricators . | . . . Repair Stations . | . . . Recycling Units . | . . . Scanalyzers . | . . . Garrison Access . | . . . Data Cores Recovered . | . . . Used . | . . . Hacking Detections 8 | . 8 . Full Trace Events . | . . . Feedback Events . | . . . Feedback Blocked . | . . . Robot Schematics Acquired . | . . . Robots Built . | . . . Authchips . | . . . Time . | . . . Total Robot Build Rating . | . . . Part Schematics Acquired . | . . . Parts Built . | . . . Authchips . | . . . Time . | . . . Total Part Build Rating . | . . . Part Studies Acquired . | . . . Parts Repaired . | . . . Time . | . . . Parts Recycled . | . . . Recycled Matter . | . . . Retrieved Matter . | . . . Retrieved Components . | . . . Parts Scanalyzed . | . . . Part Schematics Acquired . | . . . Parts Damaged . | . . . Bothacking | -11 -10 -10 ------------ Run | Yrd Mat Sub Used RIF Installer . | . . . Robots Hacked . | . . . Non-combat . | . . . Combat . | . . . Robot Hacks Applied . | . . . Relay Couplers Released . | . . . Fabnet Peak Effective % . | . . . Robots Rewired . | . . . Allies Hacked . | . . . Hacks Repelled . | . . . Allies | -11 -10 -10 -------- Run | Yrd Mat Sub Total Allies 1 | . 1 . Largest Group 1 | . 1 1 Highest-Rated Group 10 | . 10 10 Highest-Rated Ally 10 | . 10 10 Total Orders . | . . . Ally Attacks . | . . . Total Damage . | . . . Kills . | . . . Allies Corrupted . | . . . Allies Melted . | . . . Intel | -11 -10 -10 ------- Run | Yrd Mat Sub Active Infowar (turns) 3849 | 30 1018 2801 Seismic 3849 | 30 1018 2801 Robot Analysis Total 3 | . 3 . Derelict Logs Recovered 3 | . . 3 Drone Launches . | . . . Drone Recoveries . | . . . Exploration | -11 -10 -10 ------------- Run | Yrd Mat Sub Turns Passed 3982 | 108 1018 2856 Spaces Moved 2245 | 69 618 1558 Core 7 | 7 . . Treads . | . . . Legs 1638 | 62 618 958 Wheels 600 | . . 600 Hover . | . . . Flight . | . . . Fastest Speed 50 | 50 120 120 Average Speed 151 | 112 127 163 Slowest Speed 190 | 120 190 190 Overloaded Moves . | . . . Propulsion Burnouts . | . . . Robots Hopped . | . . . Potential Cave-ins . | . . . Cave-ins Triggered . | . . . Exploration Rate (%) 61 | 5 97 83 Regions Visited 2 Branch Regions 1 Pre-discovered Areas 4 | . 1 3 Known Exits Taken . | . . . Unknown Exits Taken 2 | 1 1 . Scrap Searched 3 | . . 3 Spaces Dug 2 | . 1 1 Terrain Destroyed 11 | . 1 10 Melee . | . . . Projectile 11 | . 1 10 AOE . | . . . Terrain Rammed . | . . . Walls Destroyed . | . . . Machines Disabled . | . . . Actions | -11 -10 -10 --------- Run | Yrd Mat Sub Total 2634 | 87 794 1753 Wait 170 | . 134 36 Move 2244 | 69 617 1558 Hop . | . . . Pick Up 34 | 7 5 22 Fast Attach 9 | 7 . 2 Attach 13 | . . 13 Detach 3 | . . 3 Swap 14 | . 3 11 Drop 15 | . 6 9 Fire 130 | 4 27 99 Melee . | . . . Ram . | . . . Kick 2 | . 2 . Crush . | . . . Escape Stasis . | . . . Rewire . | . . . Trap . | . . . Miscellaneous . | . . . Route ------- -11/Scrapyard -10/Materials (discovered 6 exits: *Mat x3 / [*Min x2] / *Sub) -10/Subcaves (discovered 2 exits: *Mat x2) History --------- Turn | Location | Event 4 | -11/Scrapyard | Discovered new exit (range 15) 109 | -11/Scrapyard | Entered Materials 203 | -10/Materials | Discovered new exit (range 6) 263 | -10/Materials | Discovered new exit (range 12) 317 | -10/Materials | Build established: Mutant 347 | -10/Materials | Discovered new exit (range 15) 398 | -10/Materials | Discovered new exit (range 15) 668 | -10/Materials | Identified exit to Materials 678 | -10/Materials | Discovered new exit (range 6) 748 | -10/Materials | Loaded intel: 8 terminal locations 770 | -10/Materials | Learned Storage stockpile data 783 | -10/Materials | Learned 2 Materials zone layouts 784 | -10/Materials | Learned location of 2 exits from Mines 785 | -10/Materials | Learned location of Recycling (-8) 793 | -10/Materials | Learned Recycling recycling unit intel 812 | -10/Materials | Learned Storage stockpile data 843 | -10/Materials | Learned 2 Storage zone layouts 1127 | -10/Materials | Entered Subcaves 1127 | -10/Subcaves | Accompanied by 1 ally 1128 | -10/Subcaves | Identified exit to Materials 1138 | -10/Subcaves | Shifting Twisted Machinery released Piercing Trap 1153 | -10/Subcaves | Shifting Twisted Machinery released Battle Cannon 1306 | -10/Subcaves | Ambushed by research squad 1323 | -10/Subcaves | P-60 Hacker assimilated allied Technician 1a 1341 | -10/Subcaves | Core integrity fell below 50% 1371 | -10/Subcaves | Lost 6 parts (1p2n1u2w) 1648 | -10/Subcaves | A swath of the cavern ceiling suddenly collapsed 1751 | -10/Subcaves | Learned Materials machine intel 2227 | -10/Subcaves | Shifting Twisted Machinery released Sub. Beam Cannon 2305 | -10/Subcaves | Shifting Twisted Machinery released Barrage Gun 2965 | -10/Subcaves | Visited Clippyterm 2971 | -10/Subcaves | Learned location of Deep Caves (-6) 2971 | -10/Subcaves | Learned location of Extension (-5) 3226 | -10/Subcaves | Learned Materials security intel 3272 | -10/Subcaves | A swath of the cavern ceiling suddenly collapsed 3512 | -10/Subcaves | Build established: Scavenger-Mutant 3888 | -10/Subcaves | Build established: Mutant 3973 | -10/Subcaves | Core integrity fell below 20% 3983 | -10/Subcaves | Destroyed by J2-MG5(R) with Subdweller Shrapnel Launcher Last Messages --------------- 03595_ Sub. Machine Gun melted. 03598_ Acquired Battle Cannon. 03599_ Acquired 15 matter. 03602_ Dropped Broken Sub. Beam Cannon. 03602_ Acquired Sub. Beam Cannon. 03607_ Dropped Sml. Laser. 03607_ Acquired Multitool. 03626_ System corrupted: Component data lost. 03696_ System corrupted: Heat flow error (+299). 03801_ System corrupted: Heat flow error (+116). 03805_ HQ-XJ4(u) tweaks Twisted Machinery. 03807_ HQ-XJ4(u) builds Twisted Machinery. 03829_ Dropped Sml. Laser. 03830_ Acquired Hvy. Riot Gun. 03912_ JU-5WD(R) destroyed. 03918_ Acquired 52 matter. 03920_ Dropped Sub. Laser. 03921_ Acquired Sub. Beam Cannon. 03923_ Dropped Sub. Power Source. 03974_ Battle Cannon destroyed. Map ----- +----------------------------------------------------+ | ???????????????????????## ""&##" ######?????? | | ???????????????????????# """"" "&#### "##????? | | ???????????????????????## """" " #### "##???? | | ????????????????????????##""""" " ## "#???? | | ?????????????????????????##""" " #???? | | ??????????????????????????# "#???? | | ??????????????????????????# ## ## "##???? | | ??????????????????????????## " ####### "#????? | | ???????????????????????????#"" "" #######"##????? | | ???????????????????????????#" "#"" ##"" #"#?????? | | ???????????????????????????# "# """ #?????? | | ??????????????????????????## ### """#?????? | | ????????????????????????### ### # ## # ##?????? | | ????????????????????????# # ## ########?#??????? | | ?????????????????#####?## # #??## ###??????? | | ?????????????????# ### #### ##?????? | | ?????????????????## ## #?????? | | ??????????????????## #?????? | | ???????????????????## #####?????? | | ????????????????????### ### #?????????? | | ??????????????????????## #?# #?????????? | | ?????????????????????##; ### ###???????? | | ?????????????????##;##;; #???????? | | ??????????# < #; ; ; #???????? | | ?????????? R ##???????? | | ?????????? R @ ####????????? | | ??????????# # ## # ; ##???????????? | | ??????????????????#?##; #????????????? | | ??????????????????? ##???####????? | | ?????????????????? ;; ##### ##???? | | ????????????????? ####### ##??? | | ??????????????? ??????# #??? | | ?????????????? ## ??????## ##??? | | ????????????? ??## ???????# ###### | | ????????????? ????#### ???????# ## | | ?????????????????????# ???????## # # | | ?????????????????????## ????????########### | | ??????????????????????# ??????????????????# | | ??????????????????????# ???????????????????# | | ?????????????????????? ???????????????????# | | ??????????????????????? ???????????????????# | | ??????????????????????????????????????????# | | ??????????????????????????????????????????## | | ???????????????????????????????????????????# | | ???????????????????????????????????????????#### | | ??????????????????????????????????????????????#### | | ?????????????????????????????????????????????????? | | ?????????????????????????????????????????????????? | | ?????????????????????????????????????????????????? | | ?????????????????????????????????????????????????? | +----------------------------------------------------+ Best States ------------- Heat Dissipation 25 Energy Generation 10 Energy Capacity 200 Matter Stores 300 Matter Capacity 300 Sight Range 16 Terrain Scan Density 10 Evasion (%) 55 Item Schematics ----------------- None Robot Schematics ------------------ None Fabricated ------------ Nothing Repaired ---------- Nothing Studied --------- None Alien Tech Used ----------------- None Achievements -------------- None Challenges ------------ None Game ------ Seed QuantumMultitargetingKatana Manual? 0 Play Time 00:17:41 Cumulative 200.9 hours Start 2025.11.28 @ 15:34:02 End 2025.11.28 @ 15:51:42 Sessions 1 Manual Loads 0 Difficulty Rogue Special Mode None Game No. 188 Rogue 188 Adventurer 0 Explorer 0 Win Type - Total 8 Types 6/0/1/0/0/0/0/0/0/1 Lore% 84 Gallery% 72 Achievement% 56 Wizard Run 0 Options --------- Layout 1 ASCII 0 Keyboard 1 Movement Arrows Keybinds 0 Fullscreen 1 Font 24/Smallcaps Map View 50x40 Zoom Use 0% Tactical HUD 1 Map Filters NONE Filters NONE Steam 1 RUN: daa7f809-40c2-4e35-9a78-a307499aca2a